Workbook

Sheet Qual. Analysis
A1: Rank | B1: TP ID | C1: Time | D1: Success? | F1: Exponential Parameters | I1: Classic Model | L1: Coeff | M1: Multiplier | N1: Product | O1: mod. K-M S(t) | P1: ln(S) | Q1: ln(ln(1/S)) | R1: Successful Time | S1: ln(Time) | U1: Exp.Plot | V1: Time | W1: S
A2: 1 | B2: 18 | C2: 27 | D2: 1 | F2: Intercept | G2: =INTERCEPT(C:C,P:P) -> 32.00 | I2: Geomean successful participants | J2: =GEOMEAN(R:R) -> 45.44 | L2: =(COUNT(C:C)+0.7)/(COUNT(C:C)+0.4) -> 1.016304348 | M2: =IF(D2,(COUNT(C:C)-A2+0.7)/(COUNT(C:C)-A2+1.7),"") -> 0.9465240642 | N2: =PRODUCT(M2) -> 0.9465240642 | O2: =IF(D2,L2*N2,"") -> 0.9619565217 | P2: =IF(D2,LN(O2),"") -> -0.03878602504 | Q2: =IF(D2,LN(LN(1/O2)),"") -> -3.249695277 | R2: =IF(D2,C2,"") -> 27 | S2: =IF(D2,LN(C2),"") -> 3 | V2: =IF(D2,C2,NA()) -> 27 | W2: =IF(D2, O2,NA()) -> 0.9619565217
A3: 2 | B3: 29 | C3: 29 | D3: 1 | F3: Click time | G3: =IF(G2>0,MIN(C2,G2),C2) -> 27.00 | I3: Geomean/TCR | J3: =J2/G9 -> 48.11 | L3: 1.016304348 | M3: 0.9435028249 | N3: =PRODUCT(M$2:M3) -> 0.8930481283 | O3: 0.9076086957 | P3: -0.09694194519 | Q3: -2.333642983 | R3: 29 | S3: =IF(D3,LN(C3),"") -> 3 | V3: 29 | W3: 0.9076086957
A4: 3 | B4: 16 | C4: 30 | D4: 1 | F4: Think Time | G4: =-SLOPE(C:C,P:P) -> 18.72 | I4: upper CI bound | J4: =EXP(AVERAGE(S:S)+_xlfn.CONFIDENCE.NORM(0.05,STDEV(S:S),G8)) -> 52.13 | L4: 1.016304348 | M4: 0.9401197605 | N4: =PRODUCT(M$2:M4) -> 0.8395721925 | O4: 0.8532608696 | P4: -0.1586899523 | Q4: -1.840802966 | R4: 30 | S4: 3 | V4: 30 | W4: 0.8532608696
A5: 4 | B5: 25 | C5: 33 | D5: 1 | F5: R²Exp | G5: =RSQ(C:C,P:P) -> 0.910 | I5: lower CI bound | J5: =EXP(AVERAGE(S:S)-_xlfn.CONFIDENCE.NORM(0.05,STDEV(S:S),G8)) -> 39.61 | L5: 1.016304348 | M5: 0.9363057325 | N5: =PRODUCT(M$2:M5) -> 0.7860962567 | O5: 0.7989130435 | P5: -0.2245031708 | Q5: -1.493865448 | R5: 33 | S5: 3 | V5: 33 | W5: 0.7989130435
A6: 5 | B6: 22 | C6: 38 | D6: 1 | L6: 1.016304348 | M6: 0.9319727891 | N6: =PRODUCT(M$2:M6) -> 0.7326203209 | O6: 0.7445652174 | P6: -0.2949548318 | Q6: -1.220933047 | R6: 38 | S6: 4 | V6: 38 | W6: 0.7445652174
A7: 6 | B7: 12 | C7: 40 | D7: 1 | F7: Stats | L7: 1.016304348 | M7: 0.9270072993 | N7: =PRODUCT(M$2:M7) -> 0.679144385 | O7: 0.6902173913 | P7: -0.3707486712 | Q7: -0.9922308822 | R7: 40 | S7: 4 | V7: 40 | W7: 0.6902173913
A8: 7 | B8: 35 | C8: 44 | D8: 1 | F8: N | G8: =COUNT(C:C) -> 18 | L8: 1.016304348 | M8: 0.9212598425 | N8: =PRODUCT(M$2:M8) -> 0.6256684492 | O8: 0.6358695652 | P8: -0.4527618228 | Q8: -0.7923890692 | R8: 44 | S8: 4 | V8: 44 | W8: 0.6358695652
A9: 8 | B9: 7 | C9: 44 | D9: 1 | F9: TCR | G9: =AVERAGE(D:D) -> 0.94 | L9: 1.016304348 | M9: 0.9145299145 | N9: =PRODUCT(M$2:M9) -> 0.5721925134 | O9: 0.5815217391 | P9: -0.5421069231 | Q9: -0.6122920218 | R9: 44 | S9: 4 | V9: 44 | W9: 0.5815217391
A10: 9 | B10: 11 | C10: 46 | D10: 1 | F10: R²crit | G10: =VLOOKUP(G8,'Significance Levels Table'!A3:E120,5,TRUE) -> 0.893 | L10: 1.016304348 | M10: 0.9065420561 | N10: =PRODUCT(M$2:M10) -> 0.5187165775 | O10: 0.527173913 | P10: -0.6402247791 | Q10: -0.4459359469 | R10: 46 | S10: 4 | V10: 46 | W10: 0.527173913
A11: 10 | B11: 28 | C11: 53 | D11: 1 | L11: 1.016304348 | M11: 0.8969072165 | N11: =PRODUCT(M$2:M11) -> 0.4652406417 | O11: 0.472826087 | P11: -0.749027639 | Q11: -0.288979395 | R11: 53 | S11: 4 | V11: 53 | W11: 0.472826087
A12: 11 | B12: 21 | C12: 53 | D12: 1 | F12: Outlier parking range | L12: 1.016304348 | M12: 0.8850574713 | N12: =PRODUCT(M$2:M12) -> 0.4117647059 | O12: 0.4184782609 | P12: -0.8711303358 | Q12: -0.1379636741 | R12: 53 | S12: 4 | V12: 53 | W12: 0.4184782609
A13: 12 | B13: 4 | C13: 54 | D13: 1 | F13: (copy outlier data here for reference) | L13: 1.016304348 | M13: 0.8701298701 | N13: =PRODUCT(M$2:M13) -> 0.3582887701 | O13: 0.3641304348 | P13: -1.010243138 | Q13: 0.01019103279 | R13: 54 | S13: 4 | V13: 54 | W13: 0.3641304348
A14: 13 | B14: 10 | C14: 54 | D14: 1 | L14: 1.016304348 | M14: 0.8507462687 | N14: =PRODUCT(M$2:M14) -> 0.3048128342 | O14: 0.3097826087 | P14: -1.17188449 | Q14: 0.1586131281 | R14: 54 | S14: 4 | V14: 54 | W14: 0.3097826087
A15: 14 | B15: 2 | C15: 60 | D15: 1 | L15: 1.016304348 | M15: 0.8245614035 | N15: =PRODUCT(M$2:M15) -> 0.2513368984 | O15: 0.2554347826 | P15: -1.364788156 | Q15: 0.3109992194 | R15: 60 | S15: 4 | V15: 60 | W15: 0.2554347826
A16: 15 | B16: 15 | C16: 64 | D16: 1 | L16: 1.016304348 | M16: 0.7872340426 | N16: =PRODUCT(M$2:M16) -> 0.1978609626 | O16: 0.2010869565 | P16: -1.604017845 | Q16: 0.4725116347 | R16: 64 | S16: 4 | V16: 64 | W16: 0.2010869565
A17: 16 | B17: 36 | C17: 65 | D17: 1 | L17: 1.016304348 | M17: 0.7297297297 | N17: =PRODUCT(M$2:M17) -> 0.1443850267 | O17: 0.1467391304 | P17: -1.919098892 | Q17: 0.6518557486 | R17: 65 | S17: 4 | V17: 65 | W17: 0.1467391304
A18: 17 | B18: 5 | C18: 70 | D18: 1 | L18: 1.016304348 | M18: 0.6296296296 | N18: =PRODUCT(M$2:M18) -> 0.09090909091 | O18: 0.09239130435 | P18: -2.381722414 | Q18: 0.8678239291 | R18: 70 | S18: 4 | V18: 70 | W18: 0.09239130435
A19: 18 | B19: 34 | C19: 999 | D19: 0 | L19: 1.016304348 | N19: =PRODUCT(M$2:M19) -> 0.09090909091
A20: 19 | L20: 1.016304348 | N20: =PRODUCT(M$2:M20) -> 0.09090909091
A21: 20 | L21: 1.016304348 | N21: =PRODUCT(M$2:M21) -> 0.09090909091
A22: 21 | L22: 1.016304348 | N22: =PRODUCT(M$2:M22) -> 0.09090909091
A23: 22 | L23: 1.016304348 | N23: =PRODUCT(M$2:M23) -> 0.09090909091
A24: 23 | L24: 1.016304348 | N24: =PRODUCT(M$2:M24) -> 0.09090909091
A25: 24 | L25: 1.016304348 | N25: =PRODUCT(M$2:M25) -> 0.09090909091
A26: 25 | L26: 1.016304348 | N26: =PRODUCT(M$2:M26) -> 0.09090909091
A27: 26 | L27: 1.016304348 | N27: =PRODUCT(M$2:M27) -> 0.09090909091
A28: 27 | L28: 1.016304348 | N28: =PRODUCT(M$2:M28) -> 0.09090909091
A29: 28 | L29: 1.016304348 | N29: =PRODUCT(M$2:M29) -> 0.09090909091
A30: 29 | L30: 1.016304348 | N30: =PRODUCT(M$2:M30) -> 0.09090909091
A31: 30 | L31: 1.016304348 | N31: =PRODUCT(M$2:M31) -> 0.09090909091
A32: 31 | L32: 1.016304348 | N32: =PRODUCT(M$2:M32) -> 0.09090909091
A33: 32 | L33: 1.016304348 | N33: =PRODUCT(M$2:M33) -> 0.09090909091
A34: 33 | L34: 1.016304348 | N34: =PRODUCT(M$2:M34) -> 0.09090909091
A35: 34 | L35: 1.016304348 | N35: =PRODUCT(M$2:M35) -> 0.09090909091
A36: 35 | L36: 1.016304348 | N36: =PRODUCT(M$2:M36) -> 0.09090909091
A37: 36 | L37: 1.016304348 | N37: =PRODUCT(M$2:M37) -> 0.09090909091
A38: 37 | L38: 1.016304348 | N38: =PRODUCT(M$2:M38) -> 0.09090909091
A39: 38 | L39: 1.016304348 | N39: =PRODUCT(M$2:M39) -> 0.09090909091
A40: 39 | L40: 1.016304348 | N40: =PRODUCT(M$2:M40) -> 0.09090909091
A41: 40 | L41: 1.016304348 | N41: =PRODUCT(M$2:M41) -> 0.09090909091
A42: 41 | L42: 1.016304348 | N42: =PRODUCT(M$2:M42) -> 0.09090909091
A43: 42 | L43: 1.016304348 | N43: =PRODUCT(M$2:M43) -> 0.09090909091
A44: 43 | L44: 1.016304348 | N44: =PRODUCT(M$2:M44) -> 0.09090909091
A45: 44 | L45: 1.016304348 | N45: =PRODUCT(M$2:M45) -> 0.09090909091
A46: 45 | L46: 1.016304348 | N46: =PRODUCT(M$2:M46) -> 0.09090909091
A47: 46 | L47: 1.016304348 | N47: =PRODUCT(M$2:M47) -> 0.09090909091
A48: 47 | L48: 1.016304348 | N48: =PRODUCT(M$2:M48) -> 0.09090909091
A49: 48 | L49: 1.016304348 | N49: =PRODUCT(M$2:M49) -> 0.09090909091
A50: 49 | L50: 1.016304348 | N50: =PRODUCT(M$2:M50) -> 0.09090909091
A51: 50 | L51: 1.016304348 | N51: =PRODUCT(M$2:M51) -> 0.09090909091
A52: 51 | L52: 1.016304348 | N52: =PRODUCT(M$2:M52) -> 0.09090909091
A53: 52 | L53: 1.016304348 | N53: =PRODUCT(M$2:M53) -> 0.09090909091
A54: 53 | L54: 1.016304348 | N54: =PRODUCT(M$2:M54) -> 0.09090909091
A55: 54 | L55: 1.016304348 | N55: =PRODUCT(M$2:M55) -> 0.09090909091
A56: 55 | L56: 1.016304348 | N56: =PRODUCT(M$2:M56) -> 0.09090909091
A57: 56 | L57: 1.016304348 | N57: =PRODUCT(M$2:M57) -> 0.09090909091
A58: 57 | L58: 1.016304348 | N58: =PRODUCT(M$2:M58) -> 0.09090909091
A59: 58 | L59: 1.016304348 | N59: =PRODUCT(M$2:M59) -> 0.09090909091
A60: 59 | L60: 1.016304348 | N60: =PRODUCT(M$2:M60) -> 0.09090909091
A61: 60 | L61: 1.016304348 | N61: =PRODUCT(M$2:M61) -> 0.09090909091
A62: 61 | L62: 1.016304348 | N62: =PRODUCT(M$2:M62) -> 0.09090909091
A63: 62 | L63: 1.016304348 | N63: =PRODUCT(M$2:M63) -> 0.09090909091
A64: 63 | L64: 1.016304348 | N64: =PRODUCT(M$2:M64) -> 0.09090909091
A65: 64 | L65: 1.016304348 | N65: =PRODUCT(M$2:M65) -> 0.09090909091
A66: 65 | L66: =(COUNT(C:C)+0.7)/(COUNT(C:C)+0.4) -> 1.016304348 | M66: =IF(D66,(COUNT(C:C)-A66+0.7)/(COUNT(C:C)-A66+1.7),"") ->  | N66: =PRODUCT(M$2:M66) -> 0.09090909091 | O66: =IF(D66,L66*N66,"") ->  | P66: =IF(D66,LN(O66),"") ->  | Q66: =IF(D66,LN(LN(1/O66)),"") ->  | R66: =IF(D66,C66,"") ->  | V66: =IF(D66,C66,NA()) ->  | W66: =IF(D66, O66,NA()) -> 
A67: 66 | L67: 1.016304348 | N67: =PRODUCT(M$2:M67) -> 0.09090909091 | S67: =IF(D67,LN(C67),"") -> 
A68: 67 | L68: 1.016304348 | N68: =PRODUCT(M$2:M68) -> 0.09090909091
A69: 68 | L69: 1.016304348 | N69: =PRODUCT(M$2:M69) -> 0.09090909091
A70: 69 | L70: 1.016304348 | N70: =PRODUCT(M$2:M70) -> 0.09090909091
A71: 70 | L71: 1.016304348 | N71: =PRODUCT(M$2:M71) -> 0.09090909091
A72: 71 | L72: 1.016304348 | N72: =PRODUCT(M$2:M72) -> 0.09090909091
A73: 72 | L73: 1.016304348 | N73: =PRODUCT(M$2:M73) -> 0.09090909091
A74: 73 | L74: 1.016304348 | N74: =PRODUCT(M$2:M74) -> 0.09090909091
A75: 74 | L75: 1.016304348 | N75: =PRODUCT(M$2:M75) -> 0.09090909091
A76: 75 | L76: 1.016304348 | N76: =PRODUCT(M$2:M76) -> 0.09090909091
A77: 76 | L77: 1.016304348 | N77: =PRODUCT(M$2:M77) -> 0.09090909091
A78: 77 | L78: 1.016304348 | N78: =PRODUCT(M$2:M78) -> 0.09090909091
A79: 78 | L79: 1.016304348 | N79: =PRODUCT(M$2:M79) -> 0.09090909091
A80: 79 | L80: 1.016304348 | N80: =PRODUCT(M$2:M80) -> 0.09090909091
A81: 80 | L81: 1.016304348 | N81: =PRODUCT(M$2:M81) -> 0.09090909091
A82: 81 | L82: 1.016304348 | N82: =PRODUCT(M$2:M82) -> 0.09090909091
A83: 82 | L83: 1.016304348 | N83: =PRODUCT(M$2:M83) -> 0.09090909091
A84: 83 | L84: 1.016304348 | N84: =PRODUCT(M$2:M84) -> 0.09090909091
A85: 84 | L85: 1.016304348 | N85: =PRODUCT(M$2:M85) -> 0.09090909091
A86: 85 | L86: 1.016304348 | N86: =PRODUCT(M$2:M86) -> 0.09090909091
A87: 86 | L87: 1.016304348 | N87: =PRODUCT(M$2:M87) -> 0.09090909091
A88: 87 | L88: 1.016304348 | N88: =PRODUCT(M$2:M88) -> 0.09090909091
A89: 88 | L89: 1.016304348 | N89: =PRODUCT(M$2:M89) -> 0.09090909091
A90: 89 | L90: 1.016304348 | N90: =PRODUCT(M$2:M90) -> 0.09090909091
A91: 90 | L91: 1.016304348 | N91: =PRODUCT(M$2:M91) -> 0.09090909091
A92: 91 | L92: 1.016304348 | N92: =PRODUCT(M$2:M92) -> 0.09090909091
A93: 92 | L93: 1.016304348 | N93: =PRODUCT(M$2:M93) -> 0.09090909091
A94: 93 | L94: 1.016304348 | N94: =PRODUCT(M$2:M94) -> 0.09090909091
A95: 94 | L95: 1.016304348 | N95: =PRODUCT(M$2:M95) -> 0.09090909091
A96: 95 | L96: 1.016304348 | N96: =PRODUCT(M$2:M96) -> 0.09090909091
A97: 96 | L97: 1.016304348 | N97: =PRODUCT(M$2:M97) -> 0.09090909091
A98: 97 | L98: 1.016304348 | N98: =PRODUCT(M$2:M98) -> 0.09090909091
A99: 98 | L99: 1.016304348 | N99: =PRODUCT(M$2:M99) -> 0.09090909091
A100: 99 | L100: 1.016304348 | N100: =PRODUCT(M$2:M100) -> 0.09090909091
A101: 100 | L101: 1.016304348 | N101: =PRODUCT(M$2:M101) -> 0.09090909091
A102: 101 | L102: 1.016304348 | N102: =PRODUCT(M$2:M102) -> 0.09090909091
A103: 102 | L103: 1.016304348 | N103: =PRODUCT(M$2:M103) -> 0.09090909091
A104: 103 | L104: 1.016304348 | N104: =PRODUCT(M$2:M104) -> 0.09090909091
A105: 104 | L105: 1.016304348 | N105: =PRODUCT(M$2:M105) -> 0.09090909091
A106: 105 | L106: 1.016304348 | N106: =PRODUCT(M$2:M106) -> 0.09090909091
A107: 106 | L107: 1.016304348 | N107: =PRODUCT(M$2:M107) -> 0.09090909091
A108: 107 | L108: 1.016304348 | N108: =PRODUCT(M$2:M108) -> 0.09090909091
A109: 108 | L109: 1.016304348 | N109: =PRODUCT(M$2:M109) -> 0.09090909091
A110: 109 | L110: 1.016304348 | N110: =PRODUCT(M$2:M110) -> 0.09090909091
A111: 110 | L111: 1.016304348 | N111: =PRODUCT(M$2:M111) -> 0.09090909091
A112: 111 | L112: 1.016304348 | N112: =PRODUCT(M$2:M112) -> 0.09090909091
A113: 112 | L113: 1.016304348 | N113: =PRODUCT(M$2:M113) -> 0.09090909091
A114: 113 | L114: 1.016304348 | N114: =PRODUCT(M$2:M114) -> 0.09090909091
A115: 114 | L115: 1.016304348 | N115: =PRODUCT(M$2:M115) -> 0.09090909091
A116: 115 | L116: 1.016304348 | N116: =PRODUCT(M$2:M116) -> 0.09090909091
A117: 116 | L117: 1.016304348 | N117: =PRODUCT(M$2:M117) -> 0.09090909091
A118: 117 | L118: 1.016304348 | N118: =PRODUCT(M$2:M118) -> 0.09090909091
A119: 118 | L119: 1.016304348 | N119: =PRODUCT(M$2:M119) -> 0.09090909091
A120: 119 | L120: 1.016304348 | N120: =PRODUCT(M$2:M120) -> 0.09090909091
A121: 120 | L121: 1.016304348 | N121: =PRODUCT(M$2:M121) -> 0.09090909091
A122: 121 | L122: 1.016304348 | N122: =PRODUCT(M$2:M122) -> 0.09090909091
A123: 122 | L123: 1.016304348 | N123: =PRODUCT(M$2:M123) -> 0.09090909091
A124: 123 | L124: 1.016304348 | N124: =PRODUCT(M$2:M124) -> 0.09090909091
A125: 124 | L125: 1.016304348 | N125: =PRODUCT(M$2:M125) -> 0.09090909091
A126: 125 | L126: 1.016304348 | N126: =PRODUCT(M$2:M126) -> 0.09090909091
A127: 126 | L127: 1.016304348 | N127: =PRODUCT(M$2:M127) -> 0.09090909091
A128: 127 | L128: 1.016304348 | N128: =PRODUCT(M$2:M128) -> 0.09090909091
A129: 128 | L129: 1.016304348 | N129: =PRODUCT(M$2:M129) -> 0.09090909091
A130: 129 | L130: =(COUNT(C:C)+0.7)/(COUNT(C:C)+0.4) -> 1.016304348 | M130: =IF(D130,(COUNT(C:C)-A130+0.7)/(COUNT(C:C)-A130+1.7),"") ->  | N130: =PRODUCT(M$2:M130) -> 0.09090909091 | O130: =IF(D130,L130*N130,"") ->  | P130: =IF(D130,LN(O130),"") ->  | Q130: =IF(D130,LN(LN(1/O130)),"") ->  | R130: =IF(D130,C130,"") ->  | V130: =IF(D130,C130,NA()) ->  | W130: =IF(D130, O130,NA()) -> 
A131: 130 | L131: 1.016304348 | N131: =PRODUCT(M$2:M131) -> 0.09090909091 | S131: =IF(D131,LN(C131),"") -> 
A132: 131 | L132: 1.016304348 | N132: =PRODUCT(M$2:M132) -> 0.09090909091
A133: 132 | L133: 1.016304348 | N133: =PRODUCT(M$2:M133) -> 0.09090909091
A134: 133 | L134: 1.016304348 | N134: =PRODUCT(M$2:M134) -> 0.09090909091
A135: 134 | L135: 1.016304348 | N135: =PRODUCT(M$2:M135) -> 0.09090909091
A136: 135 | L136: 1.016304348 | N136: =PRODUCT(M$2:M136) -> 0.09090909091
A137: 136 | L137: 1.016304348 | N137: =PRODUCT(M$2:M137) -> 0.09090909091
A138: 137 | L138: 1.016304348 | N138: =PRODUCT(M$2:M138) -> 0.09090909091
A139: 138 | L139: 1.016304348 | N139: =PRODUCT(M$2:M139) -> 0.09090909091
A140: 139 | L140: 1.016304348 | N140: =PRODUCT(M$2:M140) -> 0.09090909091
A141: 140 | L141: 1.016304348 | N141: =PRODUCT(M$2:M141) -> 0.09090909091
A142: 141 | L142: 1.016304348 | N142: =PRODUCT(M$2:M142) -> 0.09090909091
A143: 142 | L143: 1.016304348 | N143: =PRODUCT(M$2:M143) -> 0.09090909091
A144: 143 | L144: 1.016304348 | N144: =PRODUCT(M$2:M144) -> 0.09090909091
A145: 144 | L145: 1.016304348 | N145: =PRODUCT(M$2:M145) -> 0.09090909091
A146: 145 | L146: 1.016304348 | N146: =PRODUCT(M$2:M146) -> 0.09090909091
A147: 146 | L147: 1.016304348 | N147: =PRODUCT(M$2:M147) -> 0.09090909091
A148: 147 | L148: 1.016304348 | N148: =PRODUCT(M$2:M148) -> 0.09090909091
A149: 148 | L149: 1.016304348 | N149: =PRODUCT(M$2:M149) -> 0.09090909091
A150: 149 | L150: 1.016304348 | N150: =PRODUCT(M$2:M150) -> 0.09090909091
A151: 150 | L151: 1.016304348 | N151: =PRODUCT(M$2:M151) -> 0.09090909091
A152: 151 | L152: 1.016304348 | N152: =PRODUCT(M$2:M152) -> 0.09090909091
A153: 152 | L153: 1.016304348 | N153: =PRODUCT(M$2:M153) -> 0.09090909091
A154: 153 | L154: 1.016304348 | N154: =PRODUCT(M$2:M154) -> 0.09090909091
A155: 154 | L155: 1.016304348 | N155: =PRODUCT(M$2:M155) -> 0.09090909091
A156: 155 | L156: 1.016304348 | N156: =PRODUCT(M$2:M156) -> 0.09090909091
A157: 156 | L157: 1.016304348 | N157: =PRODUCT(M$2:M157) -> 0.09090909091
A158: 157 | L158: 1.016304348 | N158: =PRODUCT(M$2:M158) -> 0.09090909091
A159: 158 | L159: 1.016304348 | N159: =PRODUCT(M$2:M159) -> 0.09090909091
A160: 159 | L160: 1.016304348 | N160: =PRODUCT(M$2:M160) -> 0.09090909091
A161: 160 | L161: 1.016304348 | N161: =PRODUCT(M$2:M161) -> 0.09090909091
A162: 161 | L162: 1.016304348 | N162: =PRODUCT(M$2:M162) -> 0.09090909091
A163: 162 | L163: 1.016304348 | N163: =PRODUCT(M$2:M163) -> 0.09090909091
A164: 163 | L164: 1.016304348 | N164: =PRODUCT(M$2:M164) -> 0.09090909091
A165: 164 | L165: 1.016304348 | N165: =PRODUCT(M$2:M165) -> 0.09090909091
A166: 165 | L166: 1.016304348 | N166: =PRODUCT(M$2:M166) -> 0.09090909091
A167: 166 | L167: 1.016304348 | N167: =PRODUCT(M$2:M167) -> 0.09090909091
A168: 167 | L168: 1.016304348 | N168: =PRODUCT(M$2:M168) -> 0.09090909091
A169: 168 | L169: 1.016304348 | N169: =PRODUCT(M$2:M169) -> 0.09090909091
A170: 169 | L170: 1.016304348 | N170: =PRODUCT(M$2:M170) -> 0.09090909091
A171: 170 | L171: 1.016304348 | N171: =PRODUCT(M$2:M171) -> 0.09090909091
A172: 171 | L172: 1.016304348 | N172: =PRODUCT(M$2:M172) -> 0.09090909091
A173: 172 | L173: 1.016304348 | N173: =PRODUCT(M$2:M173) -> 0.09090909091
A174: 173 | L174: 1.016304348 | N174: =PRODUCT(M$2:M174) -> 0.09090909091
A175: 174 | L175: 1.016304348 | N175: =PRODUCT(M$2:M175) -> 0.09090909091
A176: 175 | L176: 1.016304348 | N176: =PRODUCT(M$2:M176) -> 0.09090909091
A177: 176 | L177: 1.016304348 | N177: =PRODUCT(M$2:M177) -> 0.09090909091
A178: 177 | L178: 1.016304348 | N178: =PRODUCT(M$2:M178) -> 0.09090909091
A179: 178 | L179: 1.016304348 | N179: =PRODUCT(M$2:M179) -> 0.09090909091
A180: 179 | L180: 1.016304348 | N180: =PRODUCT(M$2:M180) -> 0.09090909091
A181: 180 | L181: 1.016304348 | N181: =PRODUCT(M$2:M181) -> 0.09090909091
A182: 181 | L182: 1.016304348 | N182: =PRODUCT(M$2:M182) -> 0.09090909091
A183: 182 | L183: 1.016304348 | N183: =PRODUCT(M$2:M183) -> 0.09090909091
A184: 183 | L184: 1.016304348 | N184: =PRODUCT(M$2:M184) -> 0.09090909091
A185: 184 | L185: 1.016304348 | N185: =PRODUCT(M$2:M185) -> 0.09090909091
A186: 185 | L186: 1.016304348 | N186: =PRODUCT(M$2:M186) -> 0.09090909091
A187: 186 | L187: 1.016304348 | N187: =PRODUCT(M$2:M187) -> 0.09090909091
A188: 187 | L188: 1.016304348 | N188: =PRODUCT(M$2:M188) -> 0.09090909091
A189: 188 | L189: 1.016304348 | N189: =PRODUCT(M$2:M189) -> 0.09090909091
A190: 189 | L190: 1.016304348 | N190: =PRODUCT(M$2:M190) -> 0.09090909091
A191: 190 | L191: 1.016304348 | N191: =PRODUCT(M$2:M191) -> 0.09090909091
A192: 191 | L192: 1.016304348 | N192: =PRODUCT(M$2:M192) -> 0.09090909091
A193: 192 | L193: 1.016304348 | N193: =PRODUCT(M$2:M193) -> 0.09090909091
A194: 193 | L194: =(COUNT(C:C)+0.7)/(COUNT(C:C)+0.4) -> 1.016304348 | M194: =IF(D194,(COUNT(C:C)-A194+0.7)/(COUNT(C:C)-A194+1.7),"") ->  | N194: =PRODUCT(M$2:M194) -> 0.09090909091 | O194: =IF(D194,L194*N194,"") ->  | P194: =IF(D194,LN(O194),"") ->  | Q194: =IF(D194,LN(LN(1/O194)),"") ->  | R194: =IF(D194,C194,"") ->  | V194: =IF(D194,C194,NA()) ->  | W194: =IF(D194, O194,NA()) -> 
A195: 194 | L195: 1.016304348 | N195: =PRODUCT(M$2:M195) -> 0.09090909091 | S195: =IF(D195,LN(C195),"") -> 
A196: 195 | L196: 1.016304348 | N196: =PRODUCT(M$2:M196) -> 0.09090909091
A197: 196 | L197: 1.016304348 | N197: =PRODUCT(M$2:M197) -> 0.09090909091
A198: 197 | L198: 1.016304348 | N198: =PRODUCT(M$2:M198) -> 0.09090909091
A199: 198 | L199: 1.016304348 | N199: =PRODUCT(M$2:M199) -> 0.09090909091
A200: 199 | L200: 1.016304348 | N200: =PRODUCT(M$2:M200) -> 0.09090909091
... 1801 more rows

Sheet Weibull Analysis
A1: Rank | B1: TP ID | C1: Time | D1: Success? | F1: Exponential Parameters | I1: TCR <-->Time Calculator | L1: Coeff | M1: Multiplier | N1: Product | O1: mod. K-M S(t) | P1: ln(S) | Q1: ln(ln(1/S)) | R1: Successful Time | S1: ln(Time) | T1: Time - Offset | U1: ln(time-offset) | V1: Weibull Regression | X1: Exp.Plot | Y1: Time | Z1: S | AB1: Weibull Plot | AC1: ln(time) | AD1: ln(ln(1/S))
A2: 1 | B2: 18 | C2: 27 | D2: 1 | F2: Intercept | G2: =INTERCEPT(C:C,P:P) -> 32.00 | I2: TCR | J2: Time | L2: =(COUNT(C:C)+0.7)/(COUNT(C:C)+0.4) -> 1.016304348 | M2: =IF(D2,(COUNT(C:C)-A2+0.7)/(COUNT(C:C)-A2+1.7),"") -> 0.9465240642 | N2: =PRODUCT(M2) -> 0.9465240642 | O2: =IF(D2,L2*N2,"") -> 0.9619565217 | P2: =IF(D2,LN(O2),"") -> -0.03878602504 | Q2: =IF(D2,LN(LN(1/O2)),"") -> -3.249695277 | R2: =IF(D2,C2,"") -> 27 | S2: =IF(D2,LN(C2),"") -> 3 | T2: =IF(D2,C2-G$8,"") -> 4.384804785 | U2: =IF(D2,LN(C2-G$8),"") -> 1.478145106 | V2: Slope | Y2: =IF(D2,C2,NA()) -> 27 | Z2: =IF(D2, O2,NA()) -> 0.9619565217 | AC2: =IF(D2,LN(T2),NA()) -> 1.478145106 | AD2: =IF(D2,Q2,NA()) -> -3.249695277
A3: 2 | B3: 29 | C3: 29 | D3: 1 | F3: Click time | G3: =IF(G2>0,MIN(C2,G2),C2) -> 27.00 | I3: 0.5 | J3: =EXP((LN(LN(1/(1-I3)))-V5)/V3)+G8 -> 46.94 | L3: 1.016304348 | M3: 0.9435028249 | N3: =PRODUCT(M$2:M3) -> 0.8930481283 | O3: 0.9076086957 | P3: -0.09694194519 | Q3: -2.333642983 | R3: 29 | S3: =IF(D3,LN(C3),"") -> 3 | T3: 6.384804785 | U3: 1.853920915 | V3: =SLOPE(Q:Q,U:U) -> 1.54475224 | Y3: 29 | Z3: =IF(D3, O3,NA()) -> 0.9076086957 | AC3: 1.853920915 | AD3: -2.333642983
A4: 3 | B4: 16 | C4: 30 | D4: 1 | F4: Think Time | G4: =-SLOPE(C:C,P:P) -> 18.72 | I4: =IF(J4>G8,1-EXP(-EXP(V3*LN(J4-G8)+V5)),0) -> 0.74 | J4: 60 | L4: 1.016304348 | M4: 0.9401197605 | N4: =PRODUCT(M$2:M4) -> 0.8395721925 | O4: 0.8532608696 | P4: -0.1586899523 | Q4: -1.840802966 | R4: 30 | S4: 3 | T4: 7.384804785 | U4: 1.999424482 | V4: Intercept | Y4: 30 | Z4: 0.8532608696 | AC4: 1.999424482 | AD4: -1.840802966
A5: 4 | B5: 25 | C5: 33 | D5: 1 | F5: R²Exp | G5: =RSQ(C:C,P:P) -> 0.910 | L5: 1.016304348 | M5: 0.9363057325 | N5: =PRODUCT(M$2:M5) -> 0.7860962567 | O5: 0.7989130435 | P5: -0.2245031708 | Q5: -1.493865448 | R5: 33 | S5: 3 | T5: 10.38480478 | U5: 2.340343659 | V5: =INTERCEPT(Q:Q,U:U) -> -5.296500202 | Y5: 33 | Z5: 0.7989130435 | AC5: 2.340343659 | AD5: -1.493865448
A6: 5 | B6: 22 | C6: 38 | D6: 1 | I6: Classic Model | L6: 1.016304348 | M6: 0.9319727891 | N6: =PRODUCT(M$2:M6) -> 0.7326203209 | O6: 0.7445652174 | P6: -0.2949548318 | Q6: -1.220933047 | R6: 38 | S6: 4 | T6: 15.38480478 | U6: 2.73338032 | V6: ln(ln(1/2)) | Y6: 38 | Z6: 0.7445652174 | AC6: 2.73338032 | AD6: -1.220933047
A7: 6 | B7: 12 | C7: 40 | D7: 1 | F7: Weibull Parameters | I7: Geomean successful participants | J7: =GEOMEAN(R:R) -> 45.44 | L7: 1.016304348 | M7: 0.9270072993 | N7: =PRODUCT(M$2:M7) -> 0.679144385 | O7: 0.6902173913 | P7: -0.3707486712 | Q7: -0.9922308822 | R7: 40 | S7: 4 | T7: 17.38480478 | U7: 2.855596536 | V7: =LN(LN(2)) -> -0.3665129206 | Y7: 40 | Z7: 0.6902173913 | AC7: 2.855596536 | AD7: -0.9922308822
A8: 7 | B8: 35 | C8: 44 | D8: 1 | F8: Offset t0 | G8: 22.62 | I8: Geomean/TCR | J8: =J7/G15 -> 48.11 | L8: 1.016304348 | M8: 0.9212598425 | N8: =PRODUCT(M$2:M8) -> 0.6256684492 | O8: 0.6358695652 | P8: -0.4527618228 | Q8: -0.7923890692 | R8: 44 | S8: 4 | T8: 21.38480478 | U8: 3.062680613 | Y8: 44 | Z8: 0.6358695652 | AC8: 3.062680613 | AD8: -0.7923890692
A9: 8 | B9: 7 | C9: 44 | D9: 1 | F9: Char.Time | G9: =EXP(-V5/V3) -> 31 | I9: upper CI bound | J9: =EXP(AVERAGE(S:S)+_xlfn.CONFIDENCE.NORM(0.05,STDEV(S:S),G14)) -> 52.13 | L9: 1.016304348 | M9: 0.9145299145 | N9: =PRODUCT(M$2:M9) -> 0.5721925134 | O9: 0.5815217391 | P9: -0.5421069231 | Q9: -0.6122920218 | R9: 44 | S9: 4 | T9: 21.38480478 | U9: 3.062680613 | Y9: 44 | Z9: 0.5815217391 | AC9: 3.062680613 | AD9: -0.6122920218
A10: 9 | B10: 11 | C10: 46 | D10: 1 | F10: Shape | G10: =-V5/LN(G9) -> 1.545 | I10: lower CI bound | J10: =EXP(AVERAGE(S:S)-_xlfn.CONFIDENCE.NORM(0.05,STDEV(S:S),G14)) -> 39.61 | L10: 1.016304348 | M10: 0.9065420561 | N10: =PRODUCT(M$2:M10) -> 0.5187165775 | O10: 0.527173913 | P10: -0.6402247791 | Q10: -0.4459359469 | R10: 46 | S10: 4 | T10: 23.38480478 | U10: 3.152086443 | Y10: 46 | Z10: 0.527173913 | AC10: 3.152086443 | AD10: -0.4459359469
A11: 10 | B11: 28 | C11: 53 | D11: 1 | F11: R² Weibull | G11: =RSQ(Q:Q,U:U) -> 0.975 | L11: 1.016304348 | M11: 0.8969072165 | N11: =PRODUCT(M$2:M11) -> 0.4652406417 | O11: 0.472826087 | P11: -0.749027639 | Q11: -0.288979395 | R11: 53 | S11: 4 | T11: 30.38480478 | U11: 3.413942641 | Y11: 53 | Z11: 0.472826087 | AC11: 3.413942641 | AD11: -0.288979395
A12: 11 | B12: 21 | C12: 53 | D12: 1 | L12: 1.016304348 | M12: 0.8850574713 | N12: =PRODUCT(M$2:M12) -> 0.4117647059 | O12: 0.4184782609 | P12: -0.8711303358 | Q12: -0.1379636741 | R12: 53 | S12: 4 | T12: 30.38480478 | U12: 3.413942641 | Y12: 53 | Z12: 0.4184782609 | AC12: 3.413942641 | AD12: -0.1379636741
A13: 12 | B13: 4 | C13: 54 | D13: 1 | F13: Stats | L13: 1.016304348 | M13: 0.8701298701 | N13: =PRODUCT(M$2:M13) -> 0.3582887701 | O13: 0.3641304348 | P13: -1.010243138 | Q13: 0.01019103279 | R13: 54 | S13: 4 | T13: 31.38480478 | U13: 3.446323852 | Y13: 54 | Z13: 0.3641304348 | AC13: 3.446323852 | AD13: 0.01019103279
A14: 13 | B14: 10 | C14: 54 | D14: 1 | F14: N | G14: =COUNT(C:C) -> 18 | L14: 1.016304348 | M14: 0.8507462687 | N14: =PRODUCT(M$2:M14) -> 0.3048128342 | O14: 0.3097826087 | P14: -1.17188449 | Q14: 0.1586131281 | R14: 54 | S14: 4 | T14: 31.38480478 | U14: 3.446323852 | Y14: 54 | Z14: 0.3097826087 | AC14: 3.446323852 | AD14: 0.1586131281
A15: 14 | B15: 2 | C15: 60 | D15: 1 | F15: TCR | G15: =AVERAGE(D:D) -> 0.94 | L15: 1.016304348 | M15: 0.8245614035 | N15: =PRODUCT(M$2:M15) -> 0.2513368984 | O15: 0.2554347826 | P15: -1.364788156 | Q15: 0.3109992194 | R15: 60 | S15: 4 | T15: 37.38480478 | U15: 3.621264333 | Y15: 60 | Z15: 0.2554347826 | AC15: 3.621264333 | AD15: 0.3109992194
A16: 15 | B16: 15 | C16: 64 | D16: 1 | F16: R²crit | G16: =VLOOKUP(G14,'Significance Levels Table'!A3:E120,5,TRUE) -> 0.893 | L16: 1.016304348 | M16: 0.7872340426 | N16: =PRODUCT(M$2:M16) -> 0.1978609626 | O16: 0.2010869565 | P16: -1.604017845 | Q16: 0.4725116347 | R16: 64 | S16: 4 | T16: 41.38480478 | U16: 3.722913779 | Y16: 64 | Z16: 0.2010869565 | AC16: 3.722913779 | AD16: 0.4725116347
A17: 16 | B17: 36 | C17: 65 | D17: 1 | L17: 1.016304348 | M17: 0.7297297297 | N17: =PRODUCT(M$2:M17) -> 0.1443850267 | O17: 0.1467391304 | P17: -1.919098892 | Q17: 0.6518557486 | R17: 65 | S17: 4 | T17: 42.38480478 | U17: 3.74678992 | Y17: 65 | Z17: 0.1467391304 | AC17: 3.74678992 | AD17: 0.6518557486
A18: 17 | B18: 5 | C18: 70 | D18: 1 | L18: 1.016304348 | M18: 0.6296296296 | N18: =PRODUCT(M$2:M18) -> 0.09090909091 | O18: 0.09239130435 | P18: -2.381722414 | Q18: 0.8678239291 | R18: 70 | S18: 4 | T18: 47.38480478 | U18: 3.858301603 | Y18: 70 | Z18: 0.09239130435 | AC18: 3.858301603 | AD18: 0.8678239291
A19: 18 | B19: 34 | C19: 999 | D19: 0 | L19: 1.016304348 | N19: =PRODUCT(M$2:M19) -> 0.09090909091
A20: 19 | L20: 1.016304348 | N20: =PRODUCT(M$2:M20) -> 0.09090909091
A21: 20 | L21: 1.016304348 | N21: =PRODUCT(M$2:M21) -> 0.09090909091
A22: 21 | L22: 1.016304348 | N22: =PRODUCT(M$2:M22) -> 0.09090909091
A23: 22 | L23: 1.016304348 | N23: =PRODUCT(M$2:M23) -> 0.09090909091
A24: 23 | L24: 1.016304348 | N24: =PRODUCT(M$2:M24) -> 0.09090909091
A25: 24 | L25: 1.016304348 | N25: =PRODUCT(M$2:M25) -> 0.09090909091 | S25: =IF(D25,LN(C25),"") -> 
A26: 25 | L26: 1.016304348 | N26: =PRODUCT(M$2:M26) -> 0.09090909091
A27: 26 | L27: 1.016304348 | N27: =PRODUCT(M$2:M27) -> 0.09090909091
A28: 27 | L28: 1.016304348 | N28: =PRODUCT(M$2:M28) -> 0.09090909091
A29: 28 | L29: 1.016304348 | N29: =PRODUCT(M$2:M29) -> 0.09090909091
A30: 29 | L30: 1.016304348 | N30: =PRODUCT(M$2:M30) -> 0.09090909091
A31: 30 | L31: 1.016304348 | N31: =PRODUCT(M$2:M31) -> 0.09090909091
A32: 31 | L32: 1.016304348 | N32: =PRODUCT(M$2:M32) -> 0.09090909091
A33: 32 | L33: 1.016304348 | N33: =PRODUCT(M$2:M33) -> 0.09090909091
A34: 33 | L34: 1.016304348 | N34: =PRODUCT(M$2:M34) -> 0.09090909091
A35: 34 | L35: 1.016304348 | N35: =PRODUCT(M$2:M35) -> 0.09090909091
A36: 35 | L36: 1.016304348 | N36: =PRODUCT(M$2:M36) -> 0.09090909091
A37: 36 | L37: 1.016304348 | N37: =PRODUCT(M$2:M37) -> 0.09090909091
A38: 37 | L38: 1.016304348 | N38: =PRODUCT(M$2:M38) -> 0.09090909091
A39: 38 | L39: 1.016304348 | N39: =PRODUCT(M$2:M39) -> 0.09090909091
A40: 39 | L40: 1.016304348 | N40: =PRODUCT(M$2:M40) -> 0.09090909091
A41: 40 | L41: 1.016304348 | N41: =PRODUCT(M$2:M41) -> 0.09090909091
A42: 41 | L42: 1.016304348 | N42: =PRODUCT(M$2:M42) -> 0.09090909091
A43: 42 | L43: 1.016304348 | N43: =PRODUCT(M$2:M43) -> 0.09090909091
A44: 43 | L44: 1.016304348 | N44: =PRODUCT(M$2:M44) -> 0.09090909091
A45: 44 | L45: 1.016304348 | N45: =PRODUCT(M$2:M45) -> 0.09090909091
A46: 45 | L46: 1.016304348 | N46: =PRODUCT(M$2:M46) -> 0.09090909091
A47: 46 | L47: 1.016304348 | N47: =PRODUCT(M$2:M47) -> 0.09090909091
A48: 47 | L48: 1.016304348 | N48: =PRODUCT(M$2:M48) -> 0.09090909091
A49: 48 | L49: 1.016304348 | N49: =PRODUCT(M$2:M49) -> 0.09090909091
A50: 49 | L50: 1.016304348 | N50: =PRODUCT(M$2:M50) -> 0.09090909091
A51: 50 | L51: 1.016304348 | N51: =PRODUCT(M$2:M51) -> 0.09090909091
A52: 51 | L52: 1.016304348 | N52: =PRODUCT(M$2:M52) -> 0.09090909091
A53: 52 | L53: 1.016304348 | N53: =PRODUCT(M$2:M53) -> 0.09090909091
A54: 53 | L54: 1.016304348 | N54: =PRODUCT(M$2:M54) -> 0.09090909091
A55: 54 | L55: 1.016304348 | N55: =PRODUCT(M$2:M55) -> 0.09090909091
A56: 55 | L56: 1.016304348 | N56: =PRODUCT(M$2:M56) -> 0.09090909091
A57: 56 | L57: 1.016304348 | N57: =PRODUCT(M$2:M57) -> 0.09090909091
A58: 57 | L58: 1.016304348 | N58: =PRODUCT(M$2:M58) -> 0.09090909091
A59: 58 | L59: 1.016304348 | N59: =PRODUCT(M$2:M59) -> 0.09090909091
A60: 59 | L60: 1.016304348 | N60: =PRODUCT(M$2:M60) -> 0.09090909091
A61: 60 | L61: 1.016304348 | N61: =PRODUCT(M$2:M61) -> 0.09090909091
A62: 61 | L62: 1.016304348 | N62: =PRODUCT(M$2:M62) -> 0.09090909091
A63: 62 | L63: 1.016304348 | N63: =PRODUCT(M$2:M63) -> 0.09090909091
A64: 63 | L64: 1.016304348 | N64: =PRODUCT(M$2:M64) -> 0.09090909091
A65: 64 | L65: 1.016304348 | N65: =PRODUCT(M$2:M65) -> 0.09090909091
A66: 65 | L66: =(COUNT(C:C)+0.7)/(COUNT(C:C)+0.4) -> 1.016304348 | M66: =IF(D66,(COUNT(C:C)-A66+0.7)/(COUNT(C:C)-A66+1.7),"") ->  | N66: =PRODUCT(M$2:M66) -> 0.09090909091 | O66: =IF(D66,L66*N66,"") ->  | P66: =IF(D66,LN(O66),"") ->  | Q66: =IF(D66,LN(LN(1/O66)),"") ->  | R66: =IF(D66,C66,"") ->  | T66: =IF(D66,C66-G$8,"") ->  | U66: =IF(D66,LN(C66-G$8),"") ->  | Y66: =IF(D66,C66,NA()) ->  | AC66: =IF(D66,LN(T66),NA()) ->  | AD66: =IF(D66,Q66,NA()) -> 
A67: 66 | L67: 1.016304348 | N67: =PRODUCT(M$2:M67) -> 0.09090909091 | S67: =IF(D67,LN(C67),"") ->  | Z67: =IF(D67, O67,NA()) -> 
A68: 67 | L68: 1.016304348 | N68: =PRODUCT(M$2:M68) -> 0.09090909091
A69: 68 | L69: 1.016304348 | N69: =PRODUCT(M$2:M69) -> 0.09090909091
A70: 69 | L70: 1.016304348 | N70: =PRODUCT(M$2:M70) -> 0.09090909091
A71: 70 | L71: 1.016304348 | N71: =PRODUCT(M$2:M71) -> 0.09090909091
A72: 71 | L72: 1.016304348 | N72: =PRODUCT(M$2:M72) -> 0.09090909091
A73: 72 | L73: 1.016304348 | N73: =PRODUCT(M$2:M73) -> 0.09090909091
A74: 73 | L74: 1.016304348 | N74: =PRODUCT(M$2:M74) -> 0.09090909091
A75: 74 | L75: 1.016304348 | N75: =PRODUCT(M$2:M75) -> 0.09090909091
A76: 75 | L76: 1.016304348 | N76: =PRODUCT(M$2:M76) -> 0.09090909091
A77: 76 | L77: 1.016304348 | N77: =PRODUCT(M$2:M77) -> 0.09090909091
A78: 77 | L78: 1.016304348 | N78: =PRODUCT(M$2:M78) -> 0.09090909091
A79: 78 | L79: 1.016304348 | N79: =PRODUCT(M$2:M79) -> 0.09090909091
A80: 79 | L80: 1.016304348 | N80: =PRODUCT(M$2:M80) -> 0.09090909091
A81: 80 | L81: 1.016304348 | N81: =PRODUCT(M$2:M81) -> 0.09090909091
A82: 81 | L82: 1.016304348 | N82: =PRODUCT(M$2:M82) -> 0.09090909091
A83: 82 | L83: 1.016304348 | N83: =PRODUCT(M$2:M83) -> 0.09090909091
A84: 83 | L84: 1.016304348 | N84: =PRODUCT(M$2:M84) -> 0.09090909091
A85: 84 | L85: 1.016304348 | N85: =PRODUCT(M$2:M85) -> 0.09090909091
A86: 85 | L86: 1.016304348 | N86: =PRODUCT(M$2:M86) -> 0.09090909091
A87: 86 | L87: 1.016304348 | N87: =PRODUCT(M$2:M87) -> 0.09090909091
A88: 87 | L88: 1.016304348 | N88: =PRODUCT(M$2:M88) -> 0.09090909091
A89: 88 | L89: 1.016304348 | N89: =PRODUCT(M$2:M89) -> 0.09090909091
A90: 89 | L90: 1.016304348 | N90: =PRODUCT(M$2:M90) -> 0.09090909091
A91: 90 | L91: 1.016304348 | N91: =PRODUCT(M$2:M91) -> 0.09090909091
A92: 91 | L92: 1.016304348 | N92: =PRODUCT(M$2:M92) -> 0.09090909091
A93: 92 | L93: 1.016304348 | N93: =PRODUCT(M$2:M93) -> 0.09090909091
A94: 93 | L94: 1.016304348 | N94: =PRODUCT(M$2:M94) -> 0.09090909091
A95: 94 | L95: 1.016304348 | N95: =PRODUCT(M$2:M95) -> 0.09090909091
A96: 95 | L96: 1.016304348 | N96: =PRODUCT(M$2:M96) -> 0.09090909091
A97: 96 | L97: 1.016304348 | N97: =PRODUCT(M$2:M97) -> 0.09090909091
A98: 97 | L98: 1.016304348 | N98: =PRODUCT(M$2:M98) -> 0.09090909091
A99: 98 | L99: 1.016304348 | N99: =PRODUCT(M$2:M99) -> 0.09090909091
A100: 99 | L100: 1.016304348 | N100: =PRODUCT(M$2:M100) -> 0.09090909091
A101: 100 | L101: 1.016304348 | N101: =PRODUCT(M$2:M101) -> 0.09090909091
A102: 101 | L102: 1.016304348 | N102: =PRODUCT(M$2:M102) -> 0.09090909091
A103: 102 | L103: 1.016304348 | N103: =PRODUCT(M$2:M103) -> 0.09090909091
A104: 103 | L104: 1.016304348 | N104: =PRODUCT(M$2:M104) -> 0.09090909091
A105: 104 | L105: 1.016304348 | N105: =PRODUCT(M$2:M105) -> 0.09090909091
A106: 105 | L106: 1.016304348 | N106: =PRODUCT(M$2:M106) -> 0.09090909091
A107: 106 | L107: 1.016304348 | N107: =PRODUCT(M$2:M107) -> 0.09090909091
A108: 107 | L108: 1.016304348 | N108: =PRODUCT(M$2:M108) -> 0.09090909091
A109: 108 | L109: 1.016304348 | N109: =PRODUCT(M$2:M109) -> 0.09090909091
A110: 109 | L110: 1.016304348 | N110: =PRODUCT(M$2:M110) -> 0.09090909091
A111: 110 | L111: 1.016304348 | N111: =PRODUCT(M$2:M111) -> 0.09090909091
A112: 111 | L112: 1.016304348 | N112: =PRODUCT(M$2:M112) -> 0.09090909091
A113: 112 | L113: 1.016304348 | N113: =PRODUCT(M$2:M113) -> 0.09090909091
A114: 113 | L114: 1.016304348 | N114: =PRODUCT(M$2:M114) -> 0.09090909091
A115: 114 | L115: 1.016304348 | N115: =PRODUCT(M$2:M115) -> 0.09090909091
A116: 115 | L116: 1.016304348 | N116: =PRODUCT(M$2:M116) -> 0.09090909091
A117: 116 | L117: 1.016304348 | N117: =PRODUCT(M$2:M117) -> 0.09090909091
A118: 117 | L118: 1.016304348 | N118: =PRODUCT(M$2:M118) -> 0.09090909091
A119: 118 | L119: 1.016304348 | N119: =PRODUCT(M$2:M119) -> 0.09090909091
A120: 119 | L120: 1.016304348 | N120: =PRODUCT(M$2:M120) -> 0.09090909091
A121: 120 | L121: 1.016304348 | N121: =PRODUCT(M$2:M121) -> 0.09090909091
A122: 121 | L122: 1.016304348 | N122: =PRODUCT(M$2:M122) -> 0.09090909091
A123: 122 | L123: 1.016304348 | N123: =PRODUCT(M$2:M123) -> 0.09090909091
A124: 123 | L124: 1.016304348 | N124: =PRODUCT(M$2:M124) -> 0.09090909091
A125: 124 | L125: 1.016304348 | N125: =PRODUCT(M$2:M125) -> 0.09090909091
A126: 125 | L126: 1.016304348 | N126: =PRODUCT(M$2:M126) -> 0.09090909091
A127: 126 | L127: 1.016304348 | N127: =PRODUCT(M$2:M127) -> 0.09090909091
A128: 127 | L128: 1.016304348 | N128: =PRODUCT(M$2:M128) -> 0.09090909091
A129: 128 | L129: 1.016304348 | N129: =PRODUCT(M$2:M129) -> 0.09090909091
A130: 129 | L130: =(COUNT(C:C)+0.7)/(COUNT(C:C)+0.4) -> 1.016304348 | M130: =IF(D130,(COUNT(C:C)-A130+0.7)/(COUNT(C:C)-A130+1.7),"") ->  | N130: =PRODUCT(M$2:M130) -> 0.09090909091 | O130: =IF(D130,L130*N130,"") ->  | P130: =IF(D130,LN(O130),"") ->  | Q130: =IF(D130,LN(LN(1/O130)),"") ->  | R130: =IF(D130,C130,"") ->  | T130: =IF(D130,C130-G$8,"") ->  | U130: =IF(D130,LN(C130-G$8),"") ->  | Y130: =IF(D130,C130,NA()) ->  | AC130: =IF(D130,LN(T130),NA()) ->  | AD130: =IF(D130,Q130,NA()) -> 
A131: 130 | L131: 1.016304348 | N131: =PRODUCT(M$2:M131) -> 0.09090909091 | S131: =IF(D131,LN(C131),"") ->  | Z131: =IF(D131, O131,NA()) -> 
A132: 131 | L132: 1.016304348 | N132: =PRODUCT(M$2:M132) -> 0.09090909091
A133: 132 | L133: 1.016304348 | N133: =PRODUCT(M$2:M133) -> 0.09090909091
A134: 133 | L134: 1.016304348 | N134: =PRODUCT(M$2:M134) -> 0.09090909091
A135: 134 | L135: 1.016304348 | N135: =PRODUCT(M$2:M135) -> 0.09090909091
A136: 135 | L136: 1.016304348 | N136: =PRODUCT(M$2:M136) -> 0.09090909091
A137: 136 | L137: 1.016304348 | N137: =PRODUCT(M$2:M137) -> 0.09090909091
A138: 137 | L138: 1.016304348 | N138: =PRODUCT(M$2:M138) -> 0.09090909091
A139: 138 | L139: 1.016304348 | N139: =PRODUCT(M$2:M139) -> 0.09090909091
A140: 139 | L140: 1.016304348 | N140: =PRODUCT(M$2:M140) -> 0.09090909091
A141: 140 | L141: 1.016304348 | N141: =PRODUCT(M$2:M141) -> 0.09090909091
A142: 141 | L142: 1.016304348 | N142: =PRODUCT(M$2:M142) -> 0.09090909091
A143: 142 | L143: 1.016304348 | N143: =PRODUCT(M$2:M143) -> 0.09090909091
A144: 143 | L144: 1.016304348 | N144: =PRODUCT(M$2:M144) -> 0.09090909091
A145: 144 | L145: 1.016304348 | N145: =PRODUCT(M$2:M145) -> 0.09090909091
A146: 145 | L146: 1.016304348 | N146: =PRODUCT(M$2:M146) -> 0.09090909091
A147: 146 | L147: 1.016304348 | N147: =PRODUCT(M$2:M147) -> 0.09090909091
A148: 147 | L148: 1.016304348 | N148: =PRODUCT(M$2:M148) -> 0.09090909091
A149: 148 | L149: 1.016304348 | N149: =PRODUCT(M$2:M149) -> 0.09090909091
A150: 149 | L150: 1.016304348 | N150: =PRODUCT(M$2:M150) -> 0.09090909091
A151: 150 | L151: 1.016304348 | N151: =PRODUCT(M$2:M151) -> 0.09090909091
A152: 151 | L152: 1.016304348 | N152: =PRODUCT(M$2:M152) -> 0.09090909091
A153: 152 | L153: 1.016304348 | N153: =PRODUCT(M$2:M153) -> 0.09090909091
A154: 153 | L154: 1.016304348 | N154: =PRODUCT(M$2:M154) -> 0.09090909091
A155: 154 | L155: 1.016304348 | N155: =PRODUCT(M$2:M155) -> 0.09090909091
A156: 155 | L156: 1.016304348 | N156: =PRODUCT(M$2:M156) -> 0.09090909091
A157: 156 | L157: 1.016304348 | N157: =PRODUCT(M$2:M157) -> 0.09090909091
A158: 157 | L158: 1.016304348 | N158: =PRODUCT(M$2:M158) -> 0.09090909091
A159: 158 | L159: 1.016304348 | N159: =PRODUCT(M$2:M159) -> 0.09090909091
A160: 159 | L160: 1.016304348 | N160: =PRODUCT(M$2:M160) -> 0.09090909091
A161: 160 | L161: 1.016304348 | N161: =PRODUCT(M$2:M161) -> 0.09090909091
A162: 161 | L162: 1.016304348 | N162: =PRODUCT(M$2:M162) -> 0.09090909091
A163: 162 | L163: 1.016304348 | N163: =PRODUCT(M$2:M163) -> 0.09090909091
A164: 163 | L164: 1.016304348 | N164: =PRODUCT(M$2:M164) -> 0.09090909091
A165: 164 | L165: 1.016304348 | N165: =PRODUCT(M$2:M165) -> 0.09090909091
A166: 165 | L166: 1.016304348 | N166: =PRODUCT(M$2:M166) -> 0.09090909091
A167: 166 | L167: 1.016304348 | N167: =PRODUCT(M$2:M167) -> 0.09090909091
A168: 167 | L168: 1.016304348 | N168: =PRODUCT(M$2:M168) -> 0.09090909091
A169: 168 | L169: 1.016304348 | N169: =PRODUCT(M$2:M169) -> 0.09090909091
A170: 169 | L170: 1.016304348 | N170: =PRODUCT(M$2:M170) -> 0.09090909091
A171: 170 | L171: 1.016304348 | N171: =PRODUCT(M$2:M171) -> 0.09090909091
A172: 171 | L172: 1.016304348 | N172: =PRODUCT(M$2:M172) -> 0.09090909091
A173: 172 | L173: 1.016304348 | N173: =PRODUCT(M$2:M173) -> 0.09090909091
A174: 173 | L174: 1.016304348 | N174: =PRODUCT(M$2:M174) -> 0.09090909091
A175: 174 | L175: 1.016304348 | N175: =PRODUCT(M$2:M175) -> 0.09090909091
A176: 175 | L176: 1.016304348 | N176: =PRODUCT(M$2:M176) -> 0.09090909091
A177: 176 | L177: 1.016304348 | N177: =PRODUCT(M$2:M177) -> 0.09090909091
A178: 177 | L178: 1.016304348 | N178: =PRODUCT(M$2:M178) -> 0.09090909091
A179: 178 | L179: 1.016304348 | N179: =PRODUCT(M$2:M179) -> 0.09090909091
A180: 179 | L180: 1.016304348 | N180: =PRODUCT(M$2:M180) -> 0.09090909091
A181: 180 | L181: 1.016304348 | N181: =PRODUCT(M$2:M181) -> 0.09090909091
A182: 181 | L182: 1.016304348 | N182: =PRODUCT(M$2:M182) -> 0.09090909091
A183: 182 | L183: 1.016304348 | N183: =PRODUCT(M$2:M183) -> 0.09090909091
A184: 183 | L184: 1.016304348 | N184: =PRODUCT(M$2:M184) -> 0.09090909091
A185: 184 | L185: 1.016304348 | N185: =PRODUCT(M$2:M185) -> 0.09090909091
A186: 185 | L186: 1.016304348 | N186: =PRODUCT(M$2:M186) -> 0.09090909091
A187: 186 | L187: 1.016304348 | N187: =PRODUCT(M$2:M187) -> 0.09090909091
A188: 187 | L188: 1.016304348 | N188: =PRODUCT(M$2:M188) -> 0.09090909091
A189: 188 | L189: 1.016304348 | N189: =PRODUCT(M$2:M189) -> 0.09090909091
A190: 189 | L190: 1.016304348 | N190: =PRODUCT(M$2:M190) -> 0.09090909091
A191: 190 | L191: 1.016304348 | N191: =PRODUCT(M$2:M191) -> 0.09090909091
A192: 191 | L192: 1.016304348 | N192: =PRODUCT(M$2:M192) -> 0.09090909091
A193: 192 | L193: 1.016304348 | N193: =PRODUCT(M$2:M193) -> 0.09090909091
A194: 193 | L194: =(COUNT(C:C)+0.7)/(COUNT(C:C)+0.4) -> 1.016304348 | M194: =IF(D194,(COUNT(C:C)-A194+0.7)/(COUNT(C:C)-A194+1.7),"") ->  | N194: =PRODUCT(M$2:M194) -> 0.09090909091 | O194: =IF(D194,L194*N194,"") ->  | P194: =IF(D194,LN(O194),"") ->  | Q194: =IF(D194,LN(LN(1/O194)),"") ->  | R194: =IF(D194,C194,"") ->  | T194: =IF(D194,C194-G$8,"") ->  | U194: =IF(D194,LN(C194-G$8),"") ->  | Y194: =IF(D194,C194,NA()) ->  | AC194: =IF(D194,LN(T194),NA()) ->  | AD194: =IF(D194,Q194,NA()) -> 
A195: 194 | L195: 1.016304348 | N195: =PRODUCT(M$2:M195) -> 0.09090909091 | S195: =IF(D195,LN(C195),"") ->  | Z195: =IF(D195, O195,NA()) -> 
A196: 195 | L196: 1.016304348 | N196: =PRODUCT(M$2:M196) -> 0.09090909091
A197: 196 | L197: 1.016304348 | N197: =PRODUCT(M$2:M197) -> 0.09090909091
A198: 197 | L198: 1.016304348 | N198: =PRODUCT(M$2:M198) -> 0.09090909091
A199: 198 | L199: 1.016304348 | N199: =PRODUCT(M$2:M199) -> 0.09090909091
A200: 199 | L200: 1.016304348 | N200: =PRODUCT(M$2:M200) -> 0.09090909091
... 1801 more rows

Sheet Significance Levels Table
B1: R | D1: R² | N1: Source: | O1: http://www.itl.nist.gov/div898/handbook/eda/section3/eda3676.htm
A2: N | B2: p=0.01 | C2: p=0.05 | D2: p=0.01 | E2: p=0.05
A3: 3 | B3: 0.8687 | C3: 0.879 | D3: =B3*B3 -> 0.75463969 | E3: =C3*C3 -> 0.772641
A4: 4 | B4: 0.8234 | C4: 0.8666 | D4: =B4*B4 -> 0.67798756 | E4: 0.75099556
A5: 5 | B5: 0.824 | C5: 0.8786 | D5: 0.678976 | E5: 0.77193796
A6: 6 | B6: 0.8351 | C6: 0.888 | D6: 0.69739201 | E6: 0.788544
A7: 7 | B7: 0.8474 | C7: 0.897 | D7: 0.71808676 | E7: 0.804609
A8: 8 | B8: 0.859 | C8: 0.9043 | D8: 0.737881 | E8: 0.81775849
A9: 9 | B9: 0.8689 | C9: 0.9115 | D9: 0.75498721 | E9: 0.83083225
A10: 10 | B10: 0.8765 | C10: 0.9173 | D10: 0.76825225 | E10: 0.84143929
A11: 11 | B11: 0.8838 | C11: 0.9223 | D11: 0.78110244 | E11: 0.85063729
A12: 12 | B12: 0.8918 | C12: 0.9267 | D12: 0.79530724 | E12: 0.85877289
A13: 13 | B13: 0.8974 | C13: 0.931 | D13: 0.80532676 | E13: 0.866761
A14: 14 | B14: 0.9029 | C14: 0.9343 | D14: 0.81522841 | E14: 0.87291649
A15: 15 | B15: 0.908 | C15: 0.9376 | D15: 0.824464 | E15: 0.87909376
A16: 16 | B16: 0.9121 | C16: 0.9405 | D16: 0.83192641 | E16: 0.88454025
A17: 17 | B17: 0.916 | C17: 0.9433 | D17: 0.839056 | E17: 0.88981489
A18: 18 | B18: 0.9196 | C18: 0.9452 | D18: 0.84566416 | E18: 0.89340304
A19: 19 | B19: 0.923 | C19: 0.9479 | D19: 0.851929 | E19: 0.89851441
A20: 20 | B20: 0.9256 | C20: 0.9498 | D20: 0.85673536 | E20: 0.90212004
A21: 21 | B21: 0.9285 | C21: 0.9515 | D21: 0.86211225 | E21: 0.90535225
A22: 22 | B22: 0.9308 | C22: 0.9535 | D22: 0.86638864 | E22: 0.90916225
A23: 23 | B23: 0.9334 | C23: 0.9548 | D23: 0.87123556 | E23: 0.91164304
A24: 24 | B24: 0.9356 | C24: 0.9564 | D24: 0.87534736 | E24: 0.91470096
A25: 25 | B25: 0.937 | C25: 0.9575 | D25: 0.877969 | E25: 0.91680625
A26: 26 | B26: 0.9393 | C26: 0.959 | D26: 0.88228449 | E26: 0.919681
A27: 27 | B27: 0.9413 | C27: 0.96 | D27: 0.88604569 | E27: 0.9216
A28: 28 | B28: 0.9428 | C28: 0.9615 | D28: 0.88887184 | E28: 0.92448225
A29: 29 | B29: 0.9441 | C29: 0.9622 | D29: 0.89132481 | E29: 0.92582884
A30: 30 | B30: 0.9462 | C30: 0.9634 | D30: 0.89529444 | E30: 0.92813956
A31: 31 | B31: 0.9476 | C31: 0.9644 | D31: 0.89794576 | E31: 0.93006736
A32: 32 | B32: 0.949 | C32: 0.9652 | D32: 0.900601 | E32: 0.93161104
A33: 33 | B33: 0.9505 | C33: 0.9661 | D33: 0.90345025 | E33: 0.93334921
A34: 34 | B34: 0.9521 | C34: 0.9671 | D34: 0.90649441 | E34: 0.93528241
A35: 35 | B35: 0.953 | C35: 0.9678 | D35: 0.908209 | E35: 0.93663684
A36: 36 | B36: 0.954 | C36: 0.9686 | D36: 0.910116 | E36: 0.93818596
A37: 37 | B37: 0.9551 | C37: 0.9693 | D37: 0.91221601 | E37: 0.93954249
A38: 38 | B38: 0.9555 | C38: 0.97 | D38: 0.91298025 | E38: 0.9409
A39: 39 | B39: 0.9568 | C39: 0.9704 | D39: 0.91546624 | E39: 0.94167616
A40: 40 | B40: 0.9576 | C40: 0.9712 | D40: 0.91699776 | E40: 0.94322944
A41: 41 | B41: 0.9589 | C41: 0.9719 | D41: 0.91948921 | E41: 0.94458961
A42: 42 | B42: 0.9593 | C42: 0.9723 | D42: 0.92025649 | E42: 0.94536729
A43: 43 | B43: 0.9609 | C43: 0.973 | D43: 0.92332881 | E43: 0.946729
A44: 44 | B44: 0.9611 | C44: 0.9734 | D44: 0.92371321 | E44: 0.94750756
A45: 45 | B45: 0.962 | C45: 0.9739 | D45: 0.925444 | E45: 0.94848121
A46: 46 | B46: 0.9629 | C46: 0.9744 | D46: 0.92717641 | E46: 0.94945536
A47: 47 | B47: 0.9637 | C47: 0.9748 | D47: 0.92871769 | E47: 0.95023504
A48: 48 | B48: 0.964 | C48: 0.9753 | D48: 0.929296 | E48: 0.95121009
A49: 49 | B49: 0.9643 | C49: 0.9758 | D49: 0.92987449 | E49: 0.95218564
A50: 50 | B50: 0.9654 | C50: 0.9761 | D50: 0.93199716 | E50: 0.95277121
A51: 55 | B51: 0.9683 | C51: 0.9781 | D51: 0.93760489 | E51: 0.95667961
A52: 60 | B52: 0.9706 | C52: 0.9797 | D52: 0.94206436 | E52: 0.95981209
A53: 65 | B53: 0.9723 | C53: 0.9809 | D53: 0.94536729 | E53: 0.96216481
A54: 70 | B54: 0.9742 | C54: 0.9822 | D54: 0.94906564 | E54: 0.96471684
A55: 75 | B55: 0.9758 | C55: 0.9831 | D55: 0.95218564 | E55: 0.96648561
A56: 80 | B56: 0.9771 | C56: 0.9841 | D56: 0.95472441 | E56: 0.96845281
A57: 85 | B57: 0.9784 | C57: 0.985 | D57: 0.95726656 | E57: 0.970225
A58: 90 | B58: 0.9797 | C58: 0.9857 | D58: 0.95981209 | E58: 0.97160449
A59: 95 | B59: 0.9804 | C59: 0.9864 | D59: 0.96118416 | E59: 0.97298496
A60: 100 | B60: 0.9814 | C60: 0.9869 | D60: 0.96314596 | E60: 0.97397161
A61: 110 | B61: 0.983 | C61: 0.9881 | D61: 0.966289 | E61: 0.97634161
A62: 120 | B62: 0.9841 | C62: 0.9889 | D62: 0.96845281 | E62: 0.97792321
A63: 130 | B63: 0.9854 | C63: 0.9897 | D63: 0.97101316 | E63: 0.97950609
A64: 140 | B64: 0.9865 | C64: 0.9904 | D64: 0.97318225 | E64: 0.98089216
A65: 150 | B65: 0.9871 | C65: 0.9909 | D65: 0.97436641 | E65: 0.98188281
A66: 160 | B66: 0.9879 | C66: 0.9915 | D66: 0.97594641 | E66: 0.98307225
A67: 170 | B67: 0.9887 | C67: 0.9919 | D67: 0.97752769 | E67: 0.98386561
A68: 180 | B68: 0.9891 | C68: 0.9923 | D68: =B68*B68 -> 0.97831881 | E68: 0.98465929
A69: 190 | B69: 0.9897 | C69: 0.9927 | D69: 0.97950609 | E69: 0.98545329
A70: 200 | B70: 0.9903 | C70: 0.993 | D70: 0.98069409 | E70: 0.986049
A71: 210 | B71: 0.9907 | C71: 0.9933 | D71: 0.98148649 | E71: 0.98664489
A72: 220 | B72: 0.991 | C72: 0.9936 | D72: 0.982081 | E72: 0.98724096
A73: 230 | B73: 0.9914 | C73: 0.9939 | D73: 0.98287396 | E73: 0.98783721
A74: 240 | B74: 0.9917 | C74: 0.9941 | D74: 0.98346889 | E74: 0.98823481
A75: 250 | B75: 0.9921 | C75: 0.9943 | D75: 0.98426241 | E75: 0.98863249
A76: 260 | B76: 0.9924 | C76: 0.9945 | D76: 0.98485776 | E76: 0.98903025
A77: 270 | B77: 0.9926 | C77: 0.9947 | D77: 0.98525476 | E77: 0.98942809
A78: 280 | B78: 0.9929 | C78: 0.9949 | D78: 0.98585041 | E78: 0.98982601
A79: 290 | B79: 0.9931 | C79: 0.9951 | D79: 0.98624761 | E79: 0.99022401
A80: 300 | B80: 0.9933 | C80: 0.9952 | D80: 0.98664489 | E80: 0.99042304
A81: 310 | B81: 0.9936 | C81: 0.9954 | D81: 0.98724096 | E81: 0.99082116
A82: 320 | B82: 0.9937 | C82: 0.9955 | D82: 0.98743969 | E82: 0.99102025
A83: 330 | B83: 0.9939 | C83: 0.9956 | D83: 0.98783721 | E83: 0.99121936
A84: 340 | B84: 0.9941 | C84: 0.9957 | D84: 0.98823481 | E84: 0.99141849
A85: 350 | B85: 0.9942 | C85: 0.9958 | D85: 0.98843364 | E85: 0.99161764
A86: 360 | B86: 0.9944 | C86: 0.9959 | D86: 0.98883136 | E86: 0.99181681
A87: 370 | B87: 0.9945 | C87: 0.996 | D87: 0.98903025 | E87: 0.992016
A88: 380 | B88: 0.9947 | C88: 0.9961 | D88: 0.98942809 | E88: 0.99221521
A89: 390 | B89: 0.9948 | C89: 0.9962 | D89: 0.98962704 | E89: 0.99241444
A90: 400 | B90: 0.9949 | C90: 0.9963 | D90: 0.98982601 | E90: 0.99261369
A91: 410 | B91: 0.995 | C91: 0.9964 | D91: 0.990025 | E91: 0.99281296
A92: 420 | B92: 0.9951 | C92: 0.9965 | D92: 0.99022401 | E92: 0.99301225
A93: 430 | B93: 0.9953 | C93: 0.9966 | D93: 0.99062209 | E93: 0.99321156
A94: 440 | B94: 0.9954 | C94: 0.9966 | D94: 0.99082116 | E94: 0.99321156
A95: 450 | B95: 0.9954 | C95: 0.9967 | D95: 0.99082116 | E95: 0.99341089
A96: 460 | B96: 0.9955 | C96: 0.9968 | D96: 0.99102025 | E96: 0.99361024
A97: 470 | B97: 0.9956 | C97: 0.9968 | D97: 0.99121936 | E97: 0.99361024
A98: 480 | B98: 0.9957 | C98: 0.9969 | D98: 0.99141849 | E98: 0.99380961
A99: 490 | B99: 0.9958 | C99: 0.9969 | D99: 0.99161764 | E99: 0.99380961
A100: 500 | B100: 0.9959 | C100: 0.997 | D100: 0.99181681 | E100: 0.994009
A101: 525 | B101: 0.9961 | C101: 0.9972 | D101: 0.99221521 | E101: 0.99440784
A102: 550 | B102: 0.9963 | C102: 0.9973 | D102: 0.99261369 | E102: 0.99460729
A103: 575 | B103: 0.9964 | C103: 0.9974 | D103: 0.99281296 | E103: 0.99480676
A104: 600 | B104: 0.9965 | C104: 0.9975 | D104: 0.99301225 | E104: 0.99500625
A105: 625 | B105: 0.9967 | C105: 0.9976 | D105: 0.99341089 | E105: 0.99520576
A106: 650 | B106: 0.9968 | C106: 0.9977 | D106: 0.99361024 | E106: 0.99540529
A107: 675 | B107: 0.9969 | C107: 0.9977 | D107: 0.99380961 | E107: 0.99540529
A108: 700 | B108: 0.997 | C108: 0.9978 | D108: 0.994009 | E108: 0.99560484
A109: 725 | B109: 0.9971 | C109: 0.9979 | D109: 0.99420841 | E109: 0.99580441
A110: 750 | B110: 0.9972 | C110: 0.998 | D110: 0.99440784 | E110: 0.996004
A111: 775 | B111: 0.9973 | C111: 0.998 | D111: 0.99460729 | E111: 0.996004
A112: 800 | B112: 0.9974 | C112: 0.9981 | D112: 0.99480676 | E112: 0.99620361
A113: 825 | B113: 0.9975 | C113: 0.9981 | D113: 0.99500625 | E113: 0.99620361
A114: 850 | B114: 0.9975 | C114: 0.9982 | D114: 0.99500625 | E114: 0.99640324
A115: 875 | B115: 0.9976 | C115: 0.9982 | D115: 0.99520576 | E115: 0.99640324
A116: 900 | B116: 0.9977 | C116: 0.9983 | D116: 0.99540529 | E116: 0.99660289
A117: 925 | B117: 0.9977 | C117: 0.9983 | D117: 0.99540529 | E117: 0.99660289
A118: 950 | B118: 0.9978 | C118: 0.9984 | D118: 0.99560484 | E118: 0.99680256
A119: 975 | B119: 0.9978 | C119: 0.9984 | D119: 0.99560484 | E119: 0.99680256
A120: 1000 | B120: 0.9979 | C120: 0.9984 | D120: 0.99580441 | E120: 0.99680256
